Cogmind - Beta 16.1 @@@ ROGUE MODE // 2026.02.18 @ 13:43:35 Player: Fun Result: Self-destructed Performance ------------- Evolutions (1) 500 Regions Visited (2) 400 Robots Destroyed (16) 80 Value Destroyed (432) 432 Prototype IDs (0) 0 Alien Tech Used (0) 0 Bonus (0) 0 TOTAL SCORE: 1412 Bonus ------- None Cogmind --------- Core Integrity 213/400 Matter 197/300 Energy 125/125 System Corruption 0% Temperature Cool (0) Movement Flying (40) Location -9/Materials Parts ------- > --- POWER (1) -------- Light Ion Engine > --- PROPULSION (2) --- Flight Unit > --- UTILITY (3) ------ Signal Interpreter Targeting Computer > --- WEAPON (3) ------- (None) > --- INVENTORY (5) ---- (None) Peak State ------------ > --- POWER ------------ Ion Engine > --- PROPULSION ------- Cesium-ion Thruster Cesium-ion Thruster > --- UTILITY ---------- Sensor Array Signal Interpreter Targeting Computer > --- WEAPON ----------- Small Laser Assault Rifle Light Assault Rifle > --- INVENTORY -------- Light Ion Engine Cesium-ion Thruster Cesium-ion Thruster Shock Rifle Mini Grenade Launcher [Rating: 14] Favorites ----------- Power Ion Engine Engine Ion Engine Propulsion Compact Wheel Wheel Compact Wheel Flight Unit Cesium-ion Thruster Utility Sensor Array Device Sensor Array Storage Small Storage Unit Processor Signal Interpreter Weapon Light Assault Rifle Energy Gun EM Pulse Gun Ballistic Gun Light Assault Rifle Launcher Mini Grenade Launcher Build | -11 -10 -9 ------- Run | Yrd Mat Mat Slots Evolved 2 | . . 2 Power . | . . . Propulsion . | . . . Utility 1 | . . 1 Weapon 1 | . . 1 Parts Attached 22 | 6 4 12 Power 3 | 1 1 1 Engine 3 | 1 1 1 Core . | . . . Reactor . | . . . Propulsion 8 | 2 1 5 Treads . | . . . Leg . | . . . Wheel 3 | 2 1 . Hover . | . . . Flight 5 | . . 5 Utility 5 | 1 1 3 Device 1 | . 1 . Storage 2 | 1 . 1 Processor 2 | . . 2 Hackware . | . . . Protection . | . . . Artifact . | . . . Weapon 6 | 2 1 3 Energy Gun 3 | 1 . 2 Energy Cannon . | . . . Ballistic Gun 2 | 1 1 . Ballistic Cannon . | . . . Launcher 1 | . . 1 Special Weapon . | . . . Impact Weapon . | . . . Slashing Weapon . | . . . Piercing Weapon . | . . . Special Melee Weapon . | . . . Unidentified Prototypes . | . . . Parts Lost 14 | . 3 11 Power 2 | . 1 1 Propulsion 5 | . 1 4 Utility 1 | . . 1 Weapon 6 | . 1 5 Highest Loss Streak 10 | . 2 10 To Critical Strikes . | . . . Average Backups 5 | 1 6 4 Power 1 | . 1 . Propulsion 1 | . 2 1 Utility . | . . . Weapon 2 | . 2 1 Tool/Special . | . . . Unused Backups 10 | . 1 9 Power . | . . . Propulsion 4 | . . 4 Utility 2 | . 1 1 Weapon 4 | . . 4 Tool/Special . | . . . Average Slot Usage (%) 91 | . 97 79 Engine 12 | . 14 9 Wheel 20 | . 27 6 Flight 4 | . . 12 Device 11 | . 12 8 Storage 11 | . 14 7 Processor 3 | . . 11 Energy Gun 7 | . 7 7 Ballistic Gun 18 | . 20 14 Peak Build Rating 14 | 6 7 14 Average Rating 7 | 4 6 9 On Entrance 4 | . 6 7 Avg Prop Armor Cover (%) . | . . . Naked Turns . | . . . Heaviest Build 19 | 13 14 19 Greatest Support 32 | 26 32 32 Greatest Overweight (x) 4 | 2 . 4 Average Overweight (x) . | . . . Largest Inventory Capacity 8 | 8 8 8 Average Capacity 7 | 6 8 5 Most Carried 8 | 4 8 8 Average Carried 5 | 1 6 4 Final Capacity 8 | 8 8 5 Final Carried 8 | 4 8 . Class Distribution -------------------- 78% | Mutant 21% | Sprinter Dominant Class ---------------- Mutant | -10/Materials Sprinter | -9/Materials Resources | -11 -10 -9 ----------- Run | Yrd Mat Mat Matter Collected 712 | 248 464 . Remotely . | . . . Salvage Created 579 | . 311 268 Parts 26 | . 14 12 Haulers Intercepted . | . . . Recyclers Shooed . | . . . Parts Field Recycled . | . . . Retrieved Matter . | . . . Parts Self-Destructed . | . . . Prevented . | . . . Parts Restored . | . . . Kills | -11 -10 -9 ------- Run | Yrd Mat Mat Combat Hostiles Destroyed 13 | . 5 8 Guns 8 | . 4 4 AOE 5 | . 1 4 Classes Destroyed 5 | . 3 2 Recycler 2 | . 1 1 Watcher 1 | . 1 . Swarmer 3 | . . 3 Grunt 9 | . 5 4 Sentry 1 | . . 1 Best Kill Streak 5 | . 3 5 Combat Bots Only 4 | . 3 4 Max Kills in Single Turn 3 | . 1 3 Gunslinging . | . . . Exploded 2 | . 1 2 Melee . | . . . Uniques/NPCs Destroyed . | . . . Combat | -11 -10 -9 -------- Run | Yrd Mat Mat Hostile Shots Fired 112 | . 49 63 Missed 31 | . 14 17 Hits 81 | . 35 46 Projectile 81 | . 35 46 Critical Strikes 2 | . . 2 Damage Taken 1077 | . 453 624 Core 292 | . 105 187 Absorbed by Shields . | . . . Core Remaining (%) 79 | 100 58 . Volleys Fired 44 | . 29 15 Largest 3 | . 2 3 Hottest 80 | . 60 80 Shots Fired 90 | . 57 33 Gun 85 | . 57 28 Cannon . | . . . Launcher 5 | . . 5 Special . | . . . Kinetic 61 | . 45 16 Thermal 10 | . . 10 Explosive 5 | . . 5 Electromagnetic 14 | . 12 2 Robot Hit Streak 10 | . 10 6 Robot Miss Streak 4 | . 4 2 Penetration Max . | . . . Secondary Targets 4 | . 2 2 Max Gunslinging Chain 1 | . 1 1 Shots Hit Robots 59 | . 40 19 Core Hits 28 | . 15 13 Critical Kills . | . . . Critical Parts Destroyed . | . . . Critical Strikes 1 | . 1 . Corrupt 1 | . 1 . Melee Attacks . | . . . Impact . | . . . Slashing . | . . . Piercing . | . . . Sneak Attacks . | . . . Combat Hostiles . | . . . Follow-up Attacks . | . . . Damage Inflicted 999 | . 490 509 Guns 643 | . 452 191 Cannons . | . . . Explosions 356 | . 38 318 Melee . | . . . Ramming . | . . . Kinetic 447 | . 330 117 Thermal 112 | . 38 74 Explosive 318 | . . 318 Electromagnetic 122 | . 122 . Impact . | . . . Slashing . | . . . Piercing . | . . . Highest Corruption . | . . . Average Corruption . | . . . Corruption Purged . | . . . Corruption Blocked . | . . . Overload Shots . | . . . Overflow Damage 33 | . . 33 Projectiles . | . . . Explosions 33 | . . 33 Melee . | . . . Knockbacks . | . . . Impact . | . . . Kinetic . | . . . Secondary . | . . . Self-Inflicted Damage 60 | . . 60 Shots 2 | . . 2 Rammed . | . . . Targets Rammed . | . . . Kicked . | . . . Crushed . | . . . Highest Temperature 128 | . 128 126 Average Temperature 61 | . 48 76 Received Heat Transfer 504 | . 225 279 Siege Activations . | . . . Martial Activations . | . . . Shielding Activations . | . . . Robots Disrupted . | . . . Combat Hostiles . | . . . Robots Corrupted . | . . . Combat Hostiles . | . . . Parts Fried . | . . . Impact Corruptions . | . . . Robots Melted . | . . . Combat Hostiles . | . . . Parts Melted . | . . . Heat Transferred 175 | . . 175 Parts Sabotaged . | . . . Parts Stolen . | . . . Parts Stripped . | . . . Power Chain Reactions 1 | . 1 . Alert | -11 -10 -9 ------- Run | Yrd Mat Mat Maximum Alert Level . | . . . Low Security (%) 100 | 100 100 100 Level 1 . | . . . Level 2 . | . . . Level 3 . | . . . Level 4 . | . . . Level 5 . | . . . High Security . | . . . Max Security . | . . . Peak Influence 157 | . 83 157 Initial . | . . . Average 26 | . 19 50 Influence Increases 417 | . 135 282 Destroy 0b10 Robot/C 260 | . 100 160 Destroy 0b10 Robot/NC 15 | . 10 5 Destroy Leader 52 | . 22 30 Disable Machine 15 | . . 15 Destroy Structure 30 | . 3 27 Lose Combat Pursuer 45 | . . 45 Influence Decreases 285 | . 135 150 Time Decay 145 | . 105 40 Lost Part 140 | . 30 110 Squads Dispatched 3 | . 2 1 Investigation 1 | . . 1 Extermination . | . . . Reinforcement 2 | . 2 . Assault . | . . . Garrison . | . . . Intercept . | . . . Searches Triggered . | . . . Construction Impeded . | . . . Haulers Reinforced . | . . . Active Scanning Responses . | . . . Cargo Convoy Interrupts . | . . . Stealth | -11 -10 -9 --------- Run | Yrd Mat Mat Distress Signals 1 | . 1 . Communications Jammed . | . . . Distress Signals . | . . . Times Spotted 29 | . 14 15 Peak Tracking Total 7 | . 7 6 Tactical Retreats 2 | . . 2 Traps | -11 -10 -9 ------- Run | Yrd Mat Mat Traps Triggered 1 | . 1 . Indirectly . | . . . Trap Hack Attempts . | . . . Triggered . | . . . Disarmed . | . . . Reprogrammed . | . . . Reused . | . . . Traps Extracted . | . . . Installed . | . . . Triggered . | . . . Machines | -11 -10 -9 ---------- Run | Yrd Mat Mat Machines Disabled 1 | . . 1 Max in Single Turn 1 | . . 1 Machines Repaired . | . . . Machines Dismantled . | . . . Machines Sabotaged . | . . . Overloaded Fab Kills . | . . . Hacking | -11 -10 -9 --------- Run | Yrd Mat Mat Machines Accessed 4 | . 3 1 Terminals 4 | . 3 1 Fabricators . | . . . Repair Stations . | . . . Recycling Units . | . . . Scanalyzers . | . . . Garrison Access . | . . . Total Hacks 12 | . 7 5 Successful 3 | . 2 1 Failed 9 | . 5 4 Catastrophic . | . . . Database Lockouts . | . . . Manual . | . . . Terminals 12 | . 7 5 Fabricators . | . . . Repair Stations . | . . . Recycling Units . | . . . Scanalyzers . | . . . Garrison Access . | . . . Terminal Hacks 3 | . 2 1 Record 1 | . . 1 Emergency Access Points 1 | . 1 . Recall Investigation 1 | . 1 . Fabricator Hacks . | . . . Repair Station Hacks . | . . . Recycling Unit Hacks . | . . . Scanalyzer . | . . . Garrison Access Hacks . | . . . Unauthorized Hacks . | . . . Terminals . | . . . Fabricators . | . . . Repair Stations . | . . . Recycling Units . | . . . Scanalyzers . | . . . Garrison Access . | . . . Data Cores Recovered . | . . . Used . | . . . Hacking Detections 4 | . 3 1 Full Trace Events 1 | . . 1 Feedback Events . | . . . Feedback Blocked . | . . . Robot Schematics Acquired . | . . . Robots Built . | . . . Authchips . | . . . Time . | . . . Total Robot Build Rating . | . . . Part Schematics Acquired . | . . . Parts Built . | . . . Authchips . | . . . Time . | . . . Total Part Build Rating . | . . . Part Studies Acquired . | . . . Parts Repaired . | . . . Time . | . . . Parts Recycled . | . . . Recycled Matter . | . . . Retrieved Matter . | . . . Retrieved Components . | . . . Parts Scanalyzed . | . . . Part Schematics Acquired . | . . . Parts Damaged . | . . . Bothacking | -11 -10 -9 ------------ Run | Yrd Mat Mat Used RIF Installer . | . . . Robots Hacked . | . . . Non-combat . | . . . Combat . | . . . Robot Hacks Applied . | . . . Relay Couplers Released . | . . . Fabnet Peak Effective % . | . . . Robots Rewired . | . . . Allies Hacked . | . . . Hacks Repelled . | . . . Allies | -11 -10 -9 -------- Run | Yrd Mat Mat Total Allies . | . . . Largest Group . | . . . Highest-Rated Group . | . . . Highest-Rated Ally . | . . . Total Orders . | . . . Ally Attacks . | . . . Total Damage . | . . . Kills . | . . . Allies Corrupted . | . . . Allies Melted . | . . . Intel | -11 -10 -9 ------- Run | Yrd Mat Mat Active Infowar (turns) 502 | . 364 138 Sensors 502 | . 364 138 Robot Analysis Total . | . . . Derelict Logs Recovered . | . . . Drone Launches . | . . . Drone Recoveries . | . . . Exploration | -11 -10 -9 ------------- Run | Yrd Mat Mat Turns Passed 677 | 68 414 195 Spaces Moved 512 | 52 267 193 Core 19 | 16 . 3 Treads . | . . . Legs . | . . . Wheels 344 | 36 267 41 Hover . | . . . Flight 149 | . . 149 Fastest Speed 32 | 50 90 32 Average Speed 77 | 99 92 51 Slowest Speed 250 | 150 100 250 Overloaded Moves . | . . . Propulsion Burnouts . | . . . Robots Hopped 3 | . . 3 Potential Cave-ins . | . . . Cave-ins Triggered . | . . . Exploration Rate (%) 22 | 3 46 18 Regions Visited 2 Branch Regions . Pre-discovered Areas . | . . . Known Exits Taken . | . . . Unknown Exits Taken 2 | 1 1 . Scrap Searched . | . . . Spaces Dug . | . . . Terrain Destroyed 32 | . 3 29 Melee . | . . . Projectile . | . . . AOE 32 | . 3 29 Terrain Rammed . | . . . Walls Destroyed . | . . . Machines Disabled . | . . . Actions | -11 -10 -9 --------- Run | Yrd Mat Mat Total 712 | 67 382 263 Wait 95 | . 73 22 Move 504 | 51 266 187 Hop 3 | . . 3 Pick Up 28 | 10 9 9 Fast Attach 5 | . . 5 Attach 18 | 6 4 8 Detach . | . . . Swap . | . . . Drop 15 | . 1 14 Fire 44 | . 29 15 Melee . | . . . Ram . | . . . Kick . | . . . Crush . | . . . Escape Stasis . | . . . Rewire . | . . . Trap . | . . . Miscellaneous . | . . . Route ------- -11/Scrapyard -10/Materials -9/Materials History --------- Turn | Location | Event 12 | -11/Scrapyard | Discovered new exit (range 15) 69 | -11/Scrapyard | Entered Materials 70 | -10/Materials | Met a group of wandering Federalists 312 | -10/Materials | Build established: Mutant 449 | -10/Materials | Discovered new exit (range 3) 483 | -10/Materials | Entered another Materials area 483 | -9/Materials | Evolved 2 slots: Utility x1, Weapon x1 666 | -9/Materials | Lost 10 parts (1p3n1u5w) 678 | -9/Materials | Self-destructed Last Messages --------------- G-34 Mercenary destroyed. Y-45 Defender destroyed. R-06 Scavenger destroyed. U-05 Engineer lays Concrete. Destroyed Aluminum Leg. G-34 Mercenary destroyed. Mni. Grenade Launcher destroyed. Destroyed Mni. Grenade Launcher. U-05 Engineer lays Concrete. U-05 Engineer builds a Wall. U-05 Engineer lays Concrete. Cesium-ion Thruster destroyed. U-05 Engineer lays Concrete. Acquired Flight Unit. U-05 Engineer builds a Wall. U-05 Engineer lays Concrete. T-07 Excavator is excavating. Critical hit (Burn: +37). T-07 Excavator is excavating. Cesium-ion Thruster destroyed. Map ----- +----------------------------------------------------+ | ??? """ # """ + #????????????? | | ??## " " # """ # #????????????? | | ??#### # # #????????????? | | ??# # ### #????????????? | | ?## ##??# #????????????? | | ? = = * #### #????????????? | | *% %%[% ! #????????????? | | % #### #????????????? | | ! [ #??# #????????????? | | ?"S ! ! == !##??# #????????????? | | ??"" !! #!!==!!#???# #????????????? | | ??"" ??########???# ##########???? | | ??? ???????????????# #???? | | ????????????????????# #???? | | ????????????????????# #???? | | ????????????????????# #???? | | ??????????????????### ##########???? | | ??????????????????# # #????????????? | | ???????????????????# #?#######????? | | ???????????????????## #?# #????? | | ?????????????######## ### #????? | | ?????????????# + #????? | | ?????????????# ##### #????? | | ?????????????# #???# #????? | | ???????? / #???###Y###????? | | ???????# # #???#@g #?????? | | ???????# ?# #???##g #?????? | | ???????###???########????#####?????? | | ???????????????????????????????????? | | ???????????????????????????????????? | | ???????????????????????????????????? | | ???????????????????????????????????? | | ???????????????????????????????????? | | ???????????????????????????????????? | | ???????????????????????????????????? | | ???????????????????????????????????? | | ???????????????????????????????????? | | ???????????????????????????????????? | | ???????????????????????????????????? | | ???????????????????????????????????? | | ???????????????????????????????????? | | ???????????????????????????????????? | | ???????????????????????????????????? | | ???????????????????????????????????? | | ???????????????????????????????????? | | ???????????????????????????????????? | | ???????????????????????????????????? | | ???????????????????????????????????? | | ???????????????????????????????????? | | ???????????????????????????????????? | +----------------------------------------------------+ Best States ------------- Heat Dissipation 28 Energy Generation 10 Energy Capacity 250 Matter Stores 480 Matter Capacity 500 Sight Range 16 Robot Scan Range 14 Terrain Scan Density 10 Evasion (%) 63 Targeting Accuracy 5 Item Schematics ----------------- None Robot Schematics ------------------ None Fabricated ------------ Nothing Repaired ---------- Nothing Studied --------- None Alien Tech Used ----------------- None Achievements -------------- None Challenges ------------ None Game ------ Seed UtilityAbsorptionMatterbank Manual? 0 Play Time 00:14:54 Cumulative 5.7 hours Start 2026.02.18 @ 13:30:23 End 2026.02.18 @ 13:43:35 Sessions 1 Manual Loads 0 Difficulty Rogue Special Mode None Game No. 9 Rogue 9 Adventurer 0 Explorer 0 Win Type - Total 0 Types 0/0/0/0/0/0/0/0/0/0 Lore% 6 Gallery% 11 Achievement% 13 Wizard Run 0 Options --------- Layout 1 ASCII 0 Keyboard 0 Movement Mouse Keybinds 0 Fullscreen 1 Font 24/Smallcaps Map View 50x35 Zoom Use 0% Tactical HUD 0 Map Filters NONE Filters NONE Steam 1 RUN: f12ef059-7026-4967-9c09-43177976ac8d